bitfinex/quotes_BTCUSD_20240723
["timestamp","ask_amount","ask_price","bid_price","bid_amount"]
[1721759783716,0.00854,65991.0,65990.0,5.53525715]
[1721759783944,0.00854,65991.0,65990.0,4.39957702]
[1721759784353,0.00854,65991.0,65990.0,4.44957702]
[1721759784555,0.00854,65991.0,65990.0,4.39957702]
[1721759784764,0.00854,65991.0,65990.0,4.44957702]
[1721759784963,0.00854,65991.0,65990.0,4.47257702]
[1721759785156,0.00854,65991.0,65990.0,4.57257702]
[1721759785386,0.00854,65991.0,65990.0,4.8910381]
[1721759785673,0.00854,65991.0,65990.0,4.79107702]
[1721759785840,0.00854,65991.0,65990.0,4.8910381]
[1721759786245,0.00854,65991.0,65990.0,5.06833762]
[1721759786424,0.00854,65991.0,65990.0,5.19413408]
[1721759787055,0.00854,65991.0,65990.0,5.19613408]
[1721759787215,0.00854,65991.0,65990.0,5.19413408]
[1721759787626,0.00854,65991.0,65990.0,6.84343408]
[1721759787843,0.00854,65991.0,65990.0,7.01265935]
[1721759788203,0.00854,65991.0,65990.0,7.01465935]
[1721759788608,0.00854,65991.0,65990.0,6.46032227]
[1721759788816,0.00354,65991.0,65990.0,6.291097]
[1721759789232,0.00354,65991.0,65990.0,6.71896476]
[1721759789440,0.00354,65991.0,65990.0,6.80216715]
[1721759789644,0.00354,65991.0,65990.0,7.40824315]
[1721759789854,0.00354,65991.0,65990.0,7.62674315]
[1721759790051,0.00354,65991.0,65990.0,7.52478207]
[1721759790297,0.00354,65991.0,65990.0,8.06891915]
[1721759790500,0.00354,65991.0,65990.0,8.88891915]
[1721759790703,0.00354,65991.0,65990.0,8.06891915]
[1721759791541,0.00354,65991.0,65990.0,8.83891915]
[1721759791742,0.00354,65991.0,65990.0,8.06891915]
[1721759791943,0.00354,65991.0,65990.0,8.92891915]
[1721759792294,0.00354,65991.0,65990.0,8.86891915]
[1721759792495,0.00354,65991.0,65990.0,8.86744809]
[1721759792694,0.00855,65996.0,65995.0,1.60679908]
[1721759792911,0.00855,65996.0,65995.0,2.98951611]
[1721759793112,0.00855,65996.0,65995.0,3.36344311]
[1721759793519,0.00855,65996.0,65995.0,4.86344311]
[1721759793853,0.00855,65996.0,65995.0,5.18049611]
[1721759795290,0.00855,65996.0,65995.0,5.19449611]
[1721759795501,0.00855,65996.0,65995.0,5.06196164]
[1721759795627,0.00855,65996.0,65995.0,6.20437324]
[1721759795828,0.00855,65996.0,65995.0,5.35437324]
[1721759796036,0.002,66009.0,66008.0,2.31842208]
[1721759796243,0.002,66009.0,66008.0,4.78231172]
[1721759796473,0.00854,66022.0,66021.0,0.795499]
[1721759796673,0.00854,66022.0,66021.0,1.78988491]
[1721759796878,0.00854,66022.0,66021.0,2.84072662]
[1721759797078,0.00854,66022.0,66021.0,2.45809362]
[1721759797435,0.00854,66022.0,66021.0,2.75046335]
[1721759797891,0.00854,66022.0,66021.0,2.65050227]
[1721759798093,0.00854,66022.0,66021.0,2.75046335]
[1721759798530,0.00854,66022.0,66021.0,2.35813254]
[1721759798728,0.00854,66022.0,66021.0,2.64919268]
[1721759798967,0.00854,66022.0,66021.0,2.01735968]
[1721759799163,0.06864,66022.0,66021.0,2.01735968]
[1721759799562,0.06864,66022.0,66021.0,2.04535968]
[1721759799917,0.00854,66022.0,66021.0,2.03135968]
[1721759800606,0.00854,66022.0,66021.0,2.01735968]
[1721759800803,0.00854,66022.0,66021.0,2.03135968]
[1721759801155,0.00854,66022.0,66021.0,2.04535968]
[1721759801396,0.00854,66022.0,66021.0,2.03135968]
[1721759801585,0.00854,66022.0,66021.0,2.03238254]
[1721759801796,0.00854,66022.0,66021.0,2.04638254]
[1721759802319,0.00854,66022.0,66021.0,2.40084362]
[1721759802489,0.00854,66022.0,66021.0,2.30088254]
[1721759802700,0.00854,66022.0,66021.0,2.31488254]
[1721759803508,0.00854,66022.0,66021.0,3.81488254]
[1721759804518,0.00854,66022.0,66021.0,3.91484362]
[1721759804719,0.00854,66022.0,66021.0,2.41397996]
[1721759805347,0.00854,66022.0,66021.0,2.31401888]
[1721759807867,0.00854,66022.0,66021.0,2.31387124]
[1721759808630,0.00854,66022.0,66021.0,3.81387124]
[1721759809471,0.00854,66022.0,66021.0,4.27916532]
[1721759809669,0.00854,66022.0,66021.0,4.28116532]
[1721759810125,0.00854,66037.0,66036.0,0.807797]
[1721759810317,0.00854,66037.0,66036.0,3.83078962]
[1721759810586,0.00854,66037.0,66036.0,4.13365462]
[1721759810801,0.002,66049.0,66044.0,1.400998]
[1721759811007,0.002,66049.0,66044.0,3.65697994]
[1721759811211,0.002,66049.0,66044.0,2.15697994]
[1721759811413,0.002,66049.0,66044.0,2.17997994]
[1721759811631,0.002,66049.0,66044.0,2.27994102]
[1721759811843,0.002,66049.0,66044.0,4.48268365]
[1721759812049,0.002,66049.0,66044.0,4.93668365]
[1721759812220,0.002,66049.0,66044.0,4.42494265]
[1721759812444,0.002,66049.0,66044.0,4.31791775]
[1721759812595,0.002,66049.0,66044.0,4.50574157]
[1721759812795,0.002,66049.0,66044.0,4.49174157]
[1721759813232,0.0622,66048.0,66044.0,1.13203059]
[1721759813549,0.0622,66048.0,66044.0,1.42580067]
[1721759813905,0.0622,66048.0,66044.0,1.43979879]
[1721759814565,0.0622,66048.0,66044.0,1.52579879]
[1721759814770,0.0622,66048.0,66044.0,1.54879879]
[1721759814975,0.0622,66048.0,66044.0,1.56279879]
[1721759815177,0.0622,66048.0,66044.0,1.54879879]
[1721759815384,0.082,66049.0,66044.0,0.56381416]
[1721759815385,0.1583754,66045.0,66044.0,0.56381416]
[1721759815638,0.1583754,66045.0,66044.0,0.57781416]
[1721759815639,0.1720476,66045.0,66044.0,0.57781416]
[1721759815847,0.1720476,66045.0,66044.0,0.72922816]
[1721759816280,0.1720476,66045.0,66044.0,0.86271848]
[1721759816518,0.1720476,66045.0,66044.0,0.62020448]
[1721759816730,0.1720476,66045.0,66044.0,0.64820448]
[1721759816938,0.1720476,66045.0,66044.0,0.64822213]
[1721759817160,0.1720476,66045.0,66044.0,0.79463613]
[1721759817376,0.1720476,66045.0,66044.0,1.10346413]
[1721759817732,0.1720476,66045.0,66044.0,1.80022013]
[1721759817733,0.0284476,66045.0,66044.0,1.80022013]
[1721759817938,0.0147754,66045.0,66044.0,1.48339213]
[1721759818155,0.3067864,66045.0,66044.0,0.47873181]
[1721759818341,0.92606935,66045.0,66044.0,0.48873181]
[1721759818539,0.92606935,66045.0,66044.0,0.016]
[1721759818540,1.22889235,66045.0,66044.0,0.016]
[1721759818739,1.22889235,66045.0,66044.0,0.01]
[1721759818944,1.22889235,66045.0,66044.0,0.023]
[1721759819160,0.454303,66035.0,66034.0,0.002794]
[1721759819337,0.598703,66035.0,66034.0,0.27275955]
[1721759819541,0.309439,66035.0,66034.0,0.27275955]
[1721759819742,0.612308,66035.0,66034.0,0.27275955]
[1721759819967,0.158005,66035.0,66034.0,0.27275955]
[1721759820166,0.309439,66035.0,66034.0,0.27275955]
[1721759820453,0.309439,66035.0,66034.0,0.28675955]
[1721759820630,0.158005,66035.0,66034.0,0.30975955]
[1721759820863,0.309439,66035.0,66034.0,0.30975955]
[1721759821065,0.309439,66035.0,66034.0,0.30975824]
[1721759821400,0.612308,66035.0,66034.0,0.30975824]
[1721759821841,0.612308,66035.0,66034.0,0.31275824]
[1721759822290,0.612308,66035.0,66034.0,0.30775824]
[1721759822672,0.612308,66035.0,66034.0,0.29675824]
[1721759822673,0.809439,66035.0,66034.0,0.29675824]
[1721759823127,1.112308,66035.0,66034.0,0.29676003]
[1721759823338,1.112308,66035.0,66034.0,0.29576003]
[1721759823542,0.658005,66035.0,66034.0,0.84685522]
[1721759823752,0.513605,66035.0,66034.0,1.24582922]
[1721759823970,0.513605,66035.0,66034.0,1.55270322]
[1721759824192,0.5,66035.0,66034.0,1.55270322]
[1721759824655,0.5,66035.0,66034.0,1.71936969]
[1721759824656,0.51345216,66035.0,66034.0,1.71936969]
[1721759825041,0.57345216,66035.0,66034.0,0.85017103]
[1721759825458,0.57345216,66035.0,66034.0,2.35017103]
[1721759825945,0.57345216,66035.0,66034.0,1.14804503]
[1721759826208,0.51345216,66035.0,66034.0,1.15403114]
[1721759826640,0.51345216,66035.0,66034.0,1.30099379]
[1721759826850,0.5,66035.0,66034.0,1.46152735]
[1721759827058,0.5,66035.0,66034.0,1.77340135]
[1721759828226,0.5,66035.0,66034.0,1.76940135]
[1721759828953,0.5,66035.0,66034.0,0.85015714]
[1721759828954,0.6398,66035.0,66034.0,0.85015714]
[1721759829165,0.6398,66035.0,66034.0,0.54728314]
[1721759829359,0.65325216,66035.0,66034.0,0.85015714]
[1721759829519,0.65325216,66035.0,66034.0,0.55528314]
[1721759829719,0.65325216,66035.0,66034.0,0.31274614]
[1721759829928,0.80468616,66035.0,66034.0,0.30474614]
[1721759830124,0.80468616,66035.0,66034.0,0.31774614]
[1721759830125,0.65325216,66035.0,66034.0,0.31774614]
[1721759830302,0.65325216,66035.0,66034.0,0.41585184]
[1721759830487,0.65325216,66035.0,66034.0,0.39285184]
[1721759830920,0.65325216,66035.0,66034.0,0.29474614]
[1721759831833,0.80468616,66035.0,66034.0,0.29474614]
[1721759832240,1.10755516,66035.0,66034.0,0.022]
[1721759832454,1.41042416,66035.0,66034.0,0.14773523]
[1721759832875,1.41042416,66035.0,66034.0,0.13873523]
[1721759833083,1.41042416,66035.0,66034.0,0.12573523]
[1721759833441,1.41042416,66035.0,66034.0,0.12873523]
[1721759833639,1.41042416,66035.0,66034.0,0.12573523]
[1721759833879,1.71329316,66035.0,66034.0,0.12573523]
[1721759834396,2.06616216,66035.0,66034.0,0.12573523]
[1721759835218,1.86429316,66035.0,66034.0,0.12664823]
[1721759835437,2.38566216,66035.0,66034.0,0.12665862]
[1721759835637,2.38566216,66035.0,66010.0,0.2]
[1721759835638,0.454468,66011.0,66010.0,0.2]
[1721759835842,0.454468,66011.0,66010.0,0.51521644]
[1721759836061,0.757447,66011.0,66010.0,0.51521644]
[1721759836262,1.060426,66011.0,66010.0,0.51521644]
[1721759836473,0.77089916,66011.0,66010.0,0.51521644]
[1721759836856,0.77089916,66011.0,66010.0,0.52421644]
[1721759837234,0.77089916,66011.0,66010.0,0.36701991]
[1721759837463,0.77089916,66011.0,66010.0,0.35601991]
[1721759837856,0.77089916,66011.0,66010.0,0.36001991]
[1721759838874,0.77089916,66011.0,66010.0,0.35101991]
[1721759839114,0.77089916,66011.0,66010.0,0.34701991]
[1721759839248,0.77089916,66011.0,66010.0,0.34901991]
[1721759839451,0.77089916,66011.0,66010.0,0.35301991]
[1721759839663,0.77089916,66011.0,66010.0,0.35101991]
[1721759840045,0.77089916,66011.0,66010.0,0.35201991]
[1721759841465,0.91409916,66011.0,66010.0,0.005]
[1721759841669,1.52005716,66011.0,66010.0,0.005]
[1721759842107,1.21707816,66011.0,66010.0,0.005]
[1721759842491,1.26707816,66011.0,66010.0,0.005]
[1721759842722,1.26707816,66011.0,66010.0,0.001]
[1721759842928,1.21707816,66011.0,66010.0,0.001]
[1721759843098,0.151511,66002.0,66000.0,0.002794]
[1721759843315,0.151511,66002.0,66001.0,0.14701991]
[1721759843316,0.15151,66002.0,66001.0,0.14701991]
[1721759843518,0.151506,66004.0,66001.0,0.14701991]
[1721759843740,0.151505,66005.0,66001.0,0.17001991]
[1721759843957,0.302999,66007.0,66001.0,0.17001991]
[1721759843958,0.151506,66004.0,66001.0,0.17001991]
[1721759844989,0.151509,66003.0,66001.0,0.17001991]
[1721759845366,0.151506,66004.0,66001.0,0.32153191]
[1721759845499,0.303003,66006.0,66001.0,0.17001991]
[1721759845715,0.151506,66004.0,66001.0,0.17501991]
[1721759846119,0.151502,66006.0,66002.0,0.151509]
[1721759846413,0.302986,66010.0,66003.0,0.29852691]
[1721759846541,0.1432,66011.0,66003.0,0.14701991]
[1721759846542,0.302993,66008.0,66003.0,0.14701991]
[1721759846759,0.302996,66008.0,66003.0,0.29852691]
[1721759846976,0.151501,66006.0,66003.0,0.14701991]
[1721759847150,0.151501,66006.0,66003.0,0.29852791]
[1721759847499,0.151501,66006.0,66003.0,0.14701991]
[1721759847699,0.151501,66006.0,66003.0,0.14801991]
[1721759848896,0.151501,66006.0,66003.0,0.29852791]
[1721759849149,0.151504,66005.0,66003.0,0.14701991]
[1721759849357,0.151504,66005.0,66003.0,0.15301991]
[1721759849718,0.151502,66006.0,66003.0,0.15301991]
[1721759850100,0.151499,66007.0,66003.0,0.30152691]
[1721759850374,0.151497,66008.0,66004.0,0.151505]
[1721759850601,0.151499,66007.0,66005.0,0.14701991]
[1721759852180,0.302991,66009.0,66005.0,0.14701991]
[1721759852181,0.151501,66006.0,66005.0,0.14701991]
[1721759852377,0.454503,66006.0,66005.0,0.14701991]
[1721759852627,0.757505,66006.0,66005.0,0.14701991]
[1721759852798,0.454503,66006.0,66005.0,0.14701991]
[1721759853201,0.454503,66006.0,66005.0,0.15201991]
[1721759853441,0.454503,66006.0,66005.0,0.14701991]
[1721759853645,0.07348942,66013.0,66005.0,0.14701991]
[1721759853646,0.6123,66016.0,66005.0,0.71802391]
[1721759853880,0.302962,66015.0,66005.0,0.49841532]
[1721759854024,0.302962,66015.0,66009.0,0.151493]
[1721759854025,0.151486,66013.0,66009.0,0.151493]
[1721759854383,0.151485,66013.0,66010.0,0.14701991]
[1721759854627,0.5489,66016.0,66013.0,0.151485]
[1721759854757,0.5489,66016.0,66008.0,0.302993]
[1721759854758,0.5489,66016.0,66014.0,0.14701991]
[1721759854955,0.700379,66016.0,66014.0,0.14701991]
[1721759855174,0.5489,66016.0,66014.0,0.14701991]
[1721759855551,0.151469,66020.0,66016.0,0.151478]
[1721759855754,0.151469,66020.0,66015.0,0.223]
[1721759855755,0.08670256,66019.0,66017.0,0.14701991]
[1721759855957,0.01321314,66019.0,66018.0,0.151473]
[1721759856184,0.151467,66021.0,66018.0,0.29849291]
[1721759856379,0.0795,66022.0,66019.0,0.14701991]
[1721759856380,0.22495842,66020.0,66019.0,0.14701991]
[1721759856583,0.22495842,66020.0,66019.0,0.14453152]
[1721759856782,0.07348942,66020.0,66019.0,0.14453152]
[1721759856986,0.22495842,66020.0,66019.0,0.14453152]
[1721759857186,0.52789642,66020.0,66019.0,0.14453152]
[1721759857363,0.22495842,66020.0,66019.0,0.14453152]
[1721759857587,0.22495842,66020.0,66017.0,0.005]
[1721759857588,1.137014,66018.0,66017.0,0.005]
[1721759858424,0.454482,66009.0,66008.0,0.2]
[1721759858621,0.454482,66009.0,66008.0,0.34701991]
[1721759858833,0.151494,66009.0,66008.0,0.34701991]
[1721759859847,0.151494,66009.0,66008.0,0.35101991]
[1721759860437,0.454482,66009.0,66008.0,0.35101991]
[1721759860851,1.199658,66009.0,66008.0,0.004]
[1721759861258,1.249658,66009.0,66008.0,0.004]
[1721759861460,1.552646,66009.0,66008.0,0.004]
[1721759861661,1.552646,66009.0,66008.0,0.011]
[1721759862079,1.552646,66009.0,66008.0,0.004]
[1721759862512,0.151531,65993.0,65992.0,0.002794]
[1721759862669,0.15153,65994.0,65992.0,0.27284422]
[1721759862831,0.15153,65994.0,65993.0,0.27284422]
[1721759863277,0.15153,65994.0,65993.0,0.27284185]
[1721759864856,0.454587,65994.0,65993.0,0.27284185]
[1721759865614,0.151525,65996.0,65993.0,0.27284185]
[1721759865837,0.45458,65995.0,65994.0,0.12582194]
[1721759866035,0.45458,65995.0,65994.0,0.27284185]
[1721759866237,0.45458,65995.0,65994.0,0.14701991]
[1721759866475,0.45458,65995.0,65994.0,0.27284187]
[1721759866798,0.151527,65995.0,65994.0,0.27284187]
[1721759866917,0.303044,65997.0,65994.0,0.27284187]
[1721759867124,0.302988,66009.0,65995.0,0.12582196]
[1721759867125,0.83622,65996.0,65995.0,0.12582196]
[1721759867327,0.83622,65996.0,65978.0,0.2185]
[1721759867328,0.0786,65986.0,65967.0,0.009383]
[1721759867526,1.19003942,65976.0,65967.0,0.009383]
[1721759867819,1.64317942,65976.0,65967.0,0.009383]
[1721759868018,0.757942,65968.0,65967.0,0.009383]
[1721759868481,1.061119,65968.0,65967.0,0.009383]
[1721759868689,0.757942,65968.0,65967.0,0.009383]
[1721759869107,1.061119,65968.0,65967.0,0.009383]
[1721759870364,1.061119,65968.0,65967.0,0.010383]
[1721759870566,1.065119,65968.0,65967.0,0.010383]
[1721759870770,1.07787526,65968.0,65967.0,0.010383]
[1721759870983,1.07387526,65968.0,65967.0,0.009383]
[1721759871804,1.37705226,65968.0,65967.0,0.009383]
[1721759872005,1.07387526,65968.0,65967.0,0.010383]
[1721759872134,1.07387526,65968.0,65967.0,0.009383]
[1721759872337,1.37705226,65968.0,65967.0,0.009383]
[1721759872544,1.38105226,65968.0,65967.0,0.011383]
[1721759872935,1.37705226,65968.0,65967.0,0.010383]
[1721759873133,1.07387526,65968.0,65967.0,0.010383]
[1721759873336,1.07787526,65968.0,65967.0,0.010383]
[1721759873573,1.38105226,65968.0,65967.0,0.010383]
[1721759873772,1.37705226,65968.0,65967.0,0.010383]
[1721759874214,1.43105226,65968.0,65967.0,0.011383]
[1721759875033,1.43105226,65968.0,65967.0,0.010383]
[1721759875240,1.43105226,65968.0,65967.0,0.011383]
[1721759875421,1.42705226,65968.0,65967.0,0.010383]
[1721759875826,1.43105226,65968.0,65967.0,0.011383]
[1721759876291,1.37705226,65968.0,65967.0,0.010383]
[1721759876805,1.43105226,65968.0,65967.0,0.011383]
[1721759877110,1.38105226,65968.0,65967.0,0.011383]
[1721759877330,1.43105226,65968.0,65967.0,0.011383]
[1721759877693,1.07787526,65968.0,65967.0,0.011383]
[1721759878668,1.07387526,65968.0,65967.0,0.009383]
[1721759878875,1.07387526,65968.0,65967.0,0.010383]
[1721759879074,1.07787526,65968.0,65967.0,0.011383]
[1721759879475,1.07387526,65968.0,65967.0,0.011383]
[1721759879836,1.07387526,65968.0,65967.0,0.010383]
[1721759879965,1.05987526,65968.0,65967.0,0.010383]
[1721759880374,0.01275626,65968.0,65967.0,0.15640291]
[1721759880581,0.151582,65971.0,65967.0,0.1864632]
[1721759880782,0.5321,65980.0,65967.0,0.39203329]
[1721759880783,0.004,65968.0,65967.0,0.39203329]
[1721759880981,0.004,65968.0,65967.0,0.71821429]
[1721759881567,0.004,65968.0,65967.0,1.02139529]
[1721759881767,0.004,65968.0,65967.0,0.71921429]
[1721759882029,0.004,65968.0,65967.0,0.71821429]
[1721759882234,0.004,65968.0,65967.0,1.02439529]
[1721759882891,0.15157,65976.0,65971.0,0.15158]
[1721759883180,0.4688,65980.0,65975.0,0.144]
[1721759883389,0.3031,65985.0,65981.0,0.2]
[1721759883390,0.15155,65985.0,65981.0,0.2]
[1721759883612,0.8573,65994.0,65976.0,0.14701991]
[1721759883613,0.05,65993.0,65976.0,0.023]
[1721759883805,0.303098,65986.0,65974.0,0.2]
[1721759884008,0.151565,65978.0,65975.0,0.14701991]
[1721759884210,0.303124,65980.0,65975.0,0.29859191]
[1721759884211,0.151561,65980.0,65975.0,0.29859191]
[1721759884559,0.303115,65982.0,65975.0,0.14701991]
[1721759884560,0.303121,65981.0,65975.0,0.14701991]
[1721759884924,0.151563,65979.0,65975.0,0.29859091]
[1721759885121,0.151561,65980.0,65976.0,0.151569]
[1721759885336,0.151566,65978.0,65976.0,0.14801991]
[1721759885536,0.303112,65983.0,65976.0,0.14801991]
[1721759885660,0.151559,65981.0,65977.0,0.151567]
[1721759885866,0.303095,65986.0,65976.0,0.14801991]
[1721759885867,0.01278963,65982.0,65980.0,0.151558]
[1721759886243,0.15155,65985.0,65981.0,0.29857691]
[1721759886366,0.151552,65984.0,65981.0,0.14701991]
[1721759886564,0.151552,65984.0,65981.0,0.29857791]
[1721759886873,0.151556,65982.0,65981.0,0.14701991]
[1721759887072,0.303097,65986.0,65981.0,0.14701991]
[1721759887275,0.151556,65982.0,65981.0,0.14701991]
[1721759887481,0.151551,65985.0,65981.0,0.29857791]
[1721759887683,0.151546,65987.0,65983.0,0.151553]
[1721759888091,0.0642,65994.0,65981.0,0.2071911]
[1721759888298,0.0642,65994.0,65982.0,0.20258591]
[1721759888299,0.151548,65986.0,65982.0,0.20258591]
[1721759888493,0.1642,65994.0,65982.0,0.303109]
[1721759888494,0.0642,65994.0,65982.0,0.303109]
[1721759888718,0.151547,65986.0,65983.0,0.151553]
[1721759888933,0.151547,65986.0,65982.0,0.151554]
[1721759889130,0.303075,65991.0,65984.0,0.3031]
[1721759889353,0.5462,65995.0,65988.0,0.151541]
[1721759889545,0.4688,65995.0,65991.0,0.303071]
[1721759889754,0.4688,65995.0,65990.0,0.151537]
[1721759889974,0.151529,65994.0,65991.0,0.151534]
[1721759890177,0.303058,65994.0,65990.0,0.151537]
[1721759890386,0.303059,65994.0,65989.0,0.14701991]
[1721759890643,0.151536,65991.0,65989.0,0.14701991]
[1721759891088,0.4688,65995.0,65990.0,0.2]
[1721759891344,0.4688,65995.0,65994.0,0.454585]
[1721759891548,0.4688,65995.0,65994.0,0.60160491]
[1721759891860,0.4688,65995.0,65994.0,0.29854791]
[1721759892067,0.4688,66007.0,65998.0,0.303039]
[1721759892304,0.302966,66014.0,66005.0,0.0754]
[1721759892497,0.4688,66015.0,66005.0,0.0754]
[1721759892498,0.4688,66015.0,66006.0,0.47366196]
[1721759892818,0.4688,66015.0,66006.0,0.14701991]
[1721759893018,0.620281,66015.0,66010.0,0.151491]
[1721759893217,0.4688,66015.0,66009.0,0.302988]
[1721759893392,0.4688,66015.0,66010.0,0.45000291]
[1721759893622,0.15,66032.0,66010.0,0.45000291]
[1721759893623,0.4688,66024.0,66013.0,0.302969]
[1721759893826,0.302911,66026.0,66014.0,0.14701991]
[1721759894027,0.21018942,66027.0,66017.0,0.151475]
[1721759894208,0.15147,66020.0,66017.0,0.14701991]
[1721759894608,0.151473,66018.0,66017.0,0.14701991]
[1721759894817,0.302939,66020.0,66017.0,0.14701991]
[1721759894818,0.15147,66020.0,66017.0,0.14701991]
[1721759895227,0.151472,66019.0,66017.0,0.14801991]
[1721759895431,0.151461,66024.0,66019.0,0.15147]
[1721759895633,0.004,66027.0,66020.0,0.14701991]
[1721759895833,0.004,66027.0,66022.0,0.151464]
[1721759895834,0.151455,66026.0,66022.0,0.151464]
[1721759896037,0.306908,66027.0,66024.0,0.151458]
[1721759896038,0.004,66027.0,66024.0,0.151458]
[1721759896357,0.004,66027.0,66025.0,0.29847591]
[1721759896556,0.302885,66032.0,66025.0,0.14701991]
[1721759896757,0.151444,66031.0,66027.0,0.151452]
[1721759896960,0.30287,66035.0,66027.0,0.14701991]
[1721759897158,0.30287,66035.0,66028.0,0.14701991]
[1721759897382,0.07348942,66030.0,66029.0,0.151447]
[1721759897572,0.151439,66033.0,66029.0,0.29846691]
[1721759897784,0.00083,66034.0,66030.0,0.14701991]
[1721759897961,0.00083,66034.0,66032.0,0.0618]
[1721759897962,0.151439,66033.0,66032.0,0.0618]
[1721759898164,0.00083,66034.0,66032.0,0.20881991]
[1721759898361,0.00083,66034.0,66033.0,0.14701991]
[1721759898672,0.455141,66034.0,66033.0,0.14701991]
[1721759899100,0.152267,66034.0,66033.0,0.14701991]
[1721759900123,0.151446,66030.0,66029.0,0.002]
[1721759900322,0.151457,66026.0,66021.0,0.151465]
[1721759900578,0.151457,66026.0,66022.0,0.14701991]
[1721759900857,0.07348942,66030.0,66024.0,0.2]
[1721759900858,0.01340819,66025.0,66024.0,0.2]
[1721759901059,0.01340819,66025.0,66024.0,0.49847991]
[1721759901261,0.151448,66029.0,66025.0,0.151457]
[1721759901415,0.22493642,66030.0,66026.0,0.14701991]
[1721759901618,0.302899,66029.0,66026.0,0.14701991]
[1721759901847,0.151457,66025.0,66024.0,0.2]
[1721759902044,0.302909,66027.0,66024.0,0.34701991]
[1721759902241,0.07348942,66030.0,66024.0,0.34701991]
[1721759902242,0.3029,66029.0,66024.0,0.34701991]
[1721759902599,0.151457,66025.0,66024.0,0.34701991]
[1721759903265,0.151455,66026.0,66024.0,0.35501991]
[1721759903442,0.37638342,66030.0,66024.0,0.15501991]
[1721759903443,0.151457,66025.0,66024.0,0.15501991]
[1721759903671,0.151457,66025.0,66024.0,0.16001991]
[1721759904327,0.302906,66027.0,66024.0,0.15501991]
[1721759904544,0.151452,66028.0,66024.0,0.30647891]
[1721759904729,0.151453,66027.0,66024.0,0.2635749]
[1721759904885,0.151453,66027.0,66024.0,0.2555749]
[1721759905085,0.151456,66026.0,66024.0,0.15001991]
[1721759905413,0.454372,66025.0,66024.0,0.15601991]
[1721759905613,0.454372,66025.0,66024.0,0.14701991]
[1721759905816,0.454372,66025.0,66024.0,0.15601991]
[1721759905817,0.151457,66025.0,66024.0,0.15601991]
[1721759906143,0.757287,66025.0,66024.0,0.009]
[1721759906677,1.060202,66025.0,66024.0,0.009]
[1721759906886,0.151473,66018.0,66017.0,0.2]
[1721759907032,0.22496242,66018.0,66017.0,0.34701991]
[1721759907655,0.52790942,66018.0,66017.0,0.34701991]
[1721759908300,0.83085642,66018.0,66017.0,0.34701991]
[1721759908505,0.52790942,66018.0,66017.0,0.35601991]
[1721759908817,0.52790942,66018.0,66017.0,0.36801991]
[1721759909019,1.13380342,66018.0,66017.0,0.021]
[1721759910087,1.13380342,66018.0,66004.0,0.1424]
[1721759910088,0.151495,66009.0,66004.0,0.1424]
[1721759910313,0.151495,66009.0,66005.0,0.14701991]
[1721759910716,0.151495,66009.0,66005.0,0.29852191]
[1721759910942,0.151492,66010.0,66006.0,0.023]
[1721759911141,0.151492,66010.0,66007.0,0.14701991]
[1721759911454,0.151496,66008.0,66007.0,0.14701991]
[1721759911664,0.151495,66009.0,66007.0,0.14701991]
[1721759911873,0.151492,66010.0,66007.0,0.14701991]
[1721759912839,0.37647142,66011.0,66007.0,0.15501991]
[1721759912840,0.454489,66008.0,66007.0,0.15501991]
[1721759912990,0.454489,66008.0,66007.0,0.14701991]
[1721759913189,0.757482,66008.0,66007.0,0.14701991]
[1721759913391,0.151493,66010.0,66007.0,0.15601991]
[1721759913625,0.302982,66011.0,66007.0,0.15601991]
[1721759914184,0.151496,66008.0,66007.0,0.15201991]
[1721759914530,0.454489,66008.0,66007.0,0.15201991]
[1721759914740,0.454489,66008.0,66007.0,0.14701991]
[1721759915133,0.302964,66015.0,66007.0,0.15501991]
[1721759915134,0.302988,66010.0,66007.0,0.15501991]
[1721759915476,0.5481,66019.0,66007.0,0.14701991]
[1721759915477,0.757482,66008.0,66007.0,0.14701991]
[1721759915649,0.757482,66008.0,66007.0,0.15401991]
[1721759916051,0.77073177,66008.0,66007.0,0.14701991]
[1721759916257,0.77073177,66008.0,66007.0,0.15201991]
[1721759916701,0.77073177,66008.0,66007.0,0.15001991]
[1721759917247,0.151512,66001.0,66000.0,0.2]
[1721759917481,0.31624277,66008.0,65992.0,0.674927]
[1721759917482,0.15278942,66007.0,65992.0,0.674927]
[1721759917674,0.15278942,66007.0,65993.0,0.26963704]
[1721759917675,0.01319828,66001.0,65993.0,0.26963704]
[1721759917890,0.15278942,66007.0,65994.0,0.12261713]
[1721759918094,0.0617,66011.0,65995.0,0.57268974]
[1721759918095,0.01319601,66000.0,65995.0,0.57268974]
[1721759918304,0.151513,66001.0,66000.0,0.005]
[1721759918518,0.0793,66010.0,66000.0,0.005]
[1721759918519,0.303014,66004.0,66000.0,0.15201991]
[1721759918651,0.151512,66001.0,66000.0,0.15201991]
[1721759918861,0.151506,66004.0,66000.0,0.30353491]
[1721759919133,0.382285,66010.0,66000.0,0.30353491]
[1721759919134,0.382285,66010.0,66000.0,0.2429827]
[1721759919251,0.151511,66002.0,66000.0,0.2429827]
[1721759919450,0.151512,66001.0,66000.0,0.2429827]
[1721759919671,0.151508,66003.0,66000.0,0.14701991]
[1721759919895,0.15151,66002.0,66000.0,0.14701991]
[1721759920072,0.151508,66003.0,66000.0,0.15201991]
[1721759920571,0.15151,66002.0,66000.0,0.14701991]
[1721759920773,0.141,66015.0,66001.0,0.28751991]
[1721759920972,0.302991,66009.0,66003.0,0.151506]
[1721759921175,0.302991,66009.0,66001.0,0.28751991]
[1721759921176,0.302994,66008.0,66004.0,0.14701991]
[1721759921384,0.6098,66019.0,66004.0,0.14701991]
[1721759921810,0.151497,66008.0,66004.0,0.14701991]
[1721759921967,0.1515,66007.0,66004.0,0.14701991]
[1721759922183,0.1515,66007.0,66004.0,0.21166143]
[1721759922570,0.6098,66019.0,66004.0,0.21266143]
[1721759922571,0.151502,66006.0,66004.0,0.21266143]
[1721759922743,0.151502,66006.0,66004.0,0.14801991]
[1721759923179,0.151502,66006.0,66004.0,0.14701991]
[1721759923533,0.151497,66008.0,66004.0,0.30052391]
[1721759923737,0.302991,66009.0,66004.0,0.14901991]